[Event "AUT Bundesliga 2024-25"]
[Site "Austria"]
[Date "2025.04.02"]
[Round "6.9"]
[White "Halvax, Georg"]
[Black "Janzelj, Tim"]
[Result "1-0"]
[Annotator "RC"]
[ECO "A90"]
[WhiteElo "2441"]
[BlackElo "2404"]
[PlyCount "101"]
[EventDate "2024.08.28"]
[EventType "team-tourn"]
[EventCountry "AUT"]
[SourceTitle "playchess.com"]
[Source "ChessBase"]
[SourceQuality "1"]
[TimeControl "40/5400+30:1800+30"]

1. d4 {[%emt 0:00:05]} e6 {[%emt 0:00:10]} 2. c4 {[%emt 0:00:27]} f5 {[%emt 0:00:14]} 3. Nf3 {[%emt 0:00:44]} Nf6 {[%emt 0:00:13]} 4. g3 {[%emt 0:00:45]} d5 {[%emt 0:00:38]} 5. Bg2 {[%emt 0:00:46]} Bd6 {[%emt 0:01:55]} 6. O-O {[%emt 0:01:56]} c6 {[%emt 0:00:27]} 7. Qc2 {[%emt 0:01:10]} O-O {[%emt 0:00:28]} 8. b3 {[%emt 0:02:29]} Qe7 {[%emt 0:00:28]} 9. a4 {[%emt 0:07:42]} a5 {[%emt 0:00:37]} 10. Ba3 {[%emt 0:03:55]} Bxa3 {[%emt 0:00:17]} 11. Nxa3 {[%emt 0:00:27]} b6 {[%emt 0:01:19]} 12. Ne5 {[%emt 0:02:53]} Bb7 {[%emt 0:10:01]} 13. Rfc1 {[%emt 0:10:29]} Nfd7 {[%emt 0:09:47]} 14. Nd3 {[%emt 0:05:33]} Na6 {[%emt 0:01:11]} 15. Qd2 {[%emt 0:06:36]} Nf6 {[%emt 0:09:20]} 16. Qf4 {[%emt 0:09:09]} Ne4 {[%emt 0:08:07]} 17. Qe5 {[%emt 0:08:09]} Rae8 {[%emt 0:11:29]} 18. f3 {[%emt 0:09:54]} Nf6 {[%emt 0:17:32]} 19. Qe3 {[%emt 0:04:11]} c5 {[%emt 0:03:01]} 20. dxc5 {[%emt 0:04:08]} bxc5 {[%emt 0:09:21]} 21. cxd5 {[%emt 0:02:03]} Nxd5 {[%emt 0:01:00]} 22. Qe5 {[%emt 0:02:19]} f4 {[%emt 0:03:14]} 23. Nc4 {[%emt 0:00:02]} Nab4 {[%emt 0:02:50]} 24. Nxf4 {[%emt 0:04:24]} Nxf4 {[%emt 0:01:54]} 25. gxf4 {[%emt 0:00:04]} Nc6 {[%emt 0:02:02]} 26. Qe3 {[%emt 0:01:11]} Nd4 {[%emt 0:02:20]} 27. Nxa5 {[%emt 0:00:45]} Ba6 {[%emt 0:00:03]} 28. Bf1 {[%emt 0:01:52]} e5 {[%emt 0:00:58]} 29. b4 {[%emt 0:06:20]} cxb4 {[%emt 0:01:06]} 30. Nc6 {[%emt 0:00:48]} Qf6 {[%emt 0:02:36]} 31. Nxe5 {[%emt 0:01:02]} Ne6 {[%emt 0:00:47]} 32. Rc6 {[%emt 0:01:00]} Qxf4 {[%emt 0:00:25]} 33. Qxf4 {[%emt 0:01:29]} Nxf4 {[%emt 0:00:02]} 34. Rxa6 {[%emt 0:01:06]} Rxe5 {[%emt 0:00:02]} 35. Kf2 {[%emt 0:01:01]} Rc8 {[%emt 0:01:33]} 36. Ra2 {[%emt 0:00:38]} Rh5 {[%emt 0:00:31]} 37. Kg3 {[%emt 0:00:28]} Nd5 {[%emt 0:00:14]} 38. Ra5 {[%emt 0:00:31]} Rb8 {[%emt 0:00:45]} 39. e4 {[%emt 0:00:21]} Nf6 {[%emt 0:00:20]} 40. Bc4+ {[%emt 0:00:22]} Kf8 {[%emt 0:00:02]} 41. Rxh5 {[%emt 0:31:07]} Nxh5+ {[%emt 0:30:01]} 42. Kf2 {[%emt 0:00:00]} Ke7 {[%emt 0:00:00]} 43. a5 {[%emt 0:00:00]} Kd6 {[%emt 0:00:00]} 44. a6 {[%emt 0:00:00]} Kc5 {[%emt 0:00:00]} 45. Bd5 {[%emt 0:00:00]} b3 {[%emt 0:00:00]} 46. Bxb3 {[%emt 0:00:00]} Nf4 {[%emt 0:00:00]} 47. a7 {[%emt 0:00:00]} Ra8 {[%emt 0:00:00]} 48. Ke3 {[%emt 0:00:00]} g5 {[%emt 0:00:00]} 49. Ra5+ {[%emt 0:00:00]} Kb4 {[%emt 0:00:00]} 50. Rxg5 {[%emt 0:00:00]} h6 {[%emt 0:00:00]} 51. Rg8 {[%emt 0:00:00]} 1-0

[Event "AUT Bundesliga 2024-25"]
[Site "Austria"]
[Date "2025.04.02"]
[Round "6.10"]
[White "Sebenik, Matej"]
[Black "Genser, Harald"]
[Result "1-0"]
[Annotator "TA"]
[ECO "E06"]
[WhiteElo "2491"]
[BlackElo "2271"]
[PlyCount "59"]
[EventDate "2024.08.28"]
[EventType "team-tourn"]
[EventCountry "AUT"]
[SourceTitle "playchess.com"]
[Source "ChessBase"]
[SourceQuality "1"]
[TimeControl "40/5400+30:1800+30"]

{[%evp 11,59,25,27,19,16,16,24,25,31,32,31,21,47,65,69,64,64,72,134,132,175,122,183,176,197,189,220,208,219,222,187,166,237,246,240,249,232,227,289,281,440,441,527,537,516,523,999,1032,984,975]} 1. d4 {[%emt 0:00:12]} d5 {[%emt 0:00:40]} 2. c4 {[%emt 0:00:17]} e6 {[%emt 0:00:51]} 3. Nf3 {[%emt 0:00:49]} Nf6 {[%emt 0:00:47]} 4. g3 {[%emt 0:00:05]} Be7 {[%emt 0:01:31]} 5. Bg2 {[%emt 0:00:07]} O-O {[%emt 0:00:51]} 6. O-O {[%emt 0:00:34]} a5 {[%emt 0:01:27]} 7. Qc2 {[%emt 0:04:32] E06: Closed Catalan: Early deviations.} Nbd7 {[%emt 0:01:40]} 8. Rd1 {[%emt 0:02:07]} dxc4 {[%emt 0:01:59]} 9. Ne5 {[%emt 0:11:13] White has an edge.} Nxe5 {[%emt 0:12:30]} 10. dxe5 {[%emt 0:00:04]} Nd5 $146 {[%emt 0:03:11]} (10... Nd7 11. a4 c6 12. Na3 f6 13. Qxc4 fxe5 14. Qxe6+ Kh8 15. Be3 Qe8 16. Qb3 Nf6 {0-1 Van Zyl,C (1834)-Priyanka,N (2267) Sitges Sunway op 10th 2023 (1)}) 11. a3 {[%emt 0:23:34][%cal Oe2e4] Prevents Nb4} Qe8 {[%emt 0:17:04]} 12. Qxc4 {[%emt 0:00:09]} Bd7 {[%emt 0:06:18]} 13. Nc3 $1 {[%emt 0:13:04]} Nxc3 {[%emt 0:06:58]} 14. Qxc3 {[%emt 0:00:04]} c6 {[%emt 0:10:37] White has space advantage and is better White leaves nothing to chance now.} (14... Bc6 $142) 15. Be3 $16 {[%emt 0:01:12][%cal Bc1e3,Be3c5,Bc5d6][%mdl 32]} Ra6 {[%emt 0:07:43] Black is weak on the dark squares} 16. Rd2 {[%emt 0:05:15]} (16. Bc5 $18) 16... Bc8 {[%emt 0:02:09]} (16... Qc8 $16) 17. Rad1 $18 {[%emt 0:03:10]} f6 {[%emt 0:03:35]} 18. Bc5 {[%emt 0:05:38]} fxe5 {[%emt 0:06:57]} 19. Be4 {[%emt 0:03:31]} Ra8 {[%emt 0:02:32]} 20. Bd6 {[%emt 0:03:59]} Qf7 {[%emt 0:02:26]} 21. f3 $36 {[%emt 0:00:03][%mdl 2048] White is in control. Active counter play!} ({Less strong is} 21. Bxe5 Qxf2+ 22. Kh1 Bg5 $14) 21... Rd8 {[%emt 0:02:21]} (21... Bxd6 $142 22. Rxd6 Qf6) 22. Bxe7 {[%emt 0:10:27]} ({Much less strong is} 22. Bxe5 Rd5 23. f4 Rxd2 24. Qxd2 (24. Rxd2 a4 $16) 24... h6) 22... Rxd2 {[%emt 0:00:10]} 23. Rxd2 {[%emt 0:00:06]} Qxe7 {[%emt 0:00:13]} 24. Qxe5 {[%emt 0:00:02]} a4 {[%emt 0:05:12]} 25. Kg2 {[%emt 0:03:33]} g6 {[%emt 0:01:30]} (25... h6 $142 26. h4 Kh8) 26. h4 {[%emt 0:00:20] White is clearly winning.} Bd7 {[%emt 0:01:24]} 27. Qc7 {[%emt 0:02:27][%csl LRb7,LRd7]} Rd8 {[%emt 0:00:11]} 28. Qxb7 {[%emt 0:01:14]} e5 {[%emt 0:00:06][%cal Od7h3]} 29. Bxc6 {[%emt 0:01:20]} Bh3+ {[%emt 0:01:02]} 30. Kh2 {[%emt 0:00:10] Weighted Error Value: White=0.04 (flawless) /Black=0.49  Mistake:       	White=1     	Black=4      Inaccurate:     	---       	Black=3      OK:         	White=11    	Black=6      Best:        	White=3     	---        Strong:       	White=1     	---} 1-0

[Event "AUT Bundesliga 2024-25"]
[Site "Austria"]
[Date "2025.04.02"]
[Round "6.11"]
[White "Hartl, Daniel"]
[Black "Schreiner, Peter"]
[Result "1/2-1/2"]
[Annotator "RC"]
[ECO "E62"]
[WhiteElo "2271"]
[BlackElo "2425"]
[PlyCount "148"]
[EventDate "2024.08.28"]
[EventType "team-tourn"]
[EventCountry "AUT"]
[SourceTitle "playchess.com"]
[Source "ChessBase"]
[SourceQuality "1"]
[TimeControl "40/5400+30:1800+30"]

1. d4 {[%emt 0:00:04]} Nf6 {[%emt 0:00:13]} 2. c4 {[%emt 0:00:05]} g6 {[%emt 0:00:15]} 3. g3 {[%emt 0:00:06]} Bg7 {[%emt 0:01:24]} 4. Bg2 {[%emt 0:00:07]} O-O {[%emt 0:00:46]} 5. Nc3 {[%emt 0:03:34]} d6 {[%emt 0:00:36]} 6. Nf3 {[%emt 0:00:08]} c6 {[%emt 0:02:02]} 7. O-O {[%emt 0:00:14]} Bf5 {[%emt 0:01:52]} 8. Ne1 {[%emt 0:07:03]} Be6 {[%emt 0:06:30]} 9. d5 {[%emt 0:03:21]} cxd5 {[%emt 0:00:36]} 10. cxd5 {[%emt 0:00:07]} Bd7 {[%emt 0:02:53]} 11. Be3 {[%emt 0:06:01]} a5 {[%emt 0:06:13]} 12. Qb3 {[%emt 0:15:20]} Na6 {[%emt 0:24:47]} 13. Nd3 {[%emt 0:05:28]} b5 {[%emt 0:04:21]} 14. Nxb5 {[%emt 0:15:46]} a4 {[%emt 0:05:06]} 15. Qc4 {[%emt 0:02:16]} Rc8 {[%emt 0:00:13]} 16. Qxa4 {[%emt 0:00:19]} Nc7 {[%emt 0:00:08]} 17. Nb4 {[%emt 0:11:06]} Bxb5 {[%emt 0:02:57]} 18. Qd1 {[%emt 0:00:05]} Na6 {[%emt 0:06:14]} 19. Nc6 {[%emt 0:01:15]} Bxc6 {[%emt 0:02:26]} 20. dxc6 {[%emt 0:00:09]} Ng4 {[%emt 0:05:58]} 21. Bd4 {[%emt 0:00:09]} Bxd4 {[%emt 0:08:55]} 22. Qxd4 {[%emt 0:00:08]} Ne5 {[%emt 0:00:07]} 23. b4 {[%emt 0:00:32]} Nxc6 {[%emt 0:07:27]} 24. Bxc6 {[%emt 0:00:09]} Rxc6 {[%emt 0:00:05]} 25. b5 {[%emt 0:00:07]} Rb6 {[%emt 0:04:27]} 26. bxa6 {[%emt 0:00:09]} Rxa6 {[%emt 0:00:04]} 27. a4 {[%emt 0:01:20]} Qd7 {[%emt 0:00:25]} 28. Rfb1 {[%emt 0:02:03]} Rfa8 {[%emt 0:00:22]} 29. Rb4 {[%emt 0:01:05]} h5 {[%emt 0:01:28]} 30. h4 {[%emt 0:02:44]} Ra5 {[%emt 0:00:40]} 31. Qe4 {[%emt 0:01:53]} e5 {[%emt 0:02:23]} 32. Rb7 {[%emt 0:04:08]} Qe8 {[%emt 0:00:46]} 33. Qb4 {[%emt 0:02:20]} Rxa4 {[%emt 0:03:13]} 34. Rxa4 {[%emt 0:00:09]} Qxa4 {[%emt 0:00:34]} 35. Qxd6 {[%emt 0:00:07]} Qe4 {[%emt 0:00:49]} 36. Rb8+ {[%emt 0:00:23]} Rxb8 {[%emt 0:00:06]} 37. Qxb8+ {[%emt 0:00:05]} Kg7 {[%emt 0:00:21]} 38. e3 {[%emt 0:03:24]} Qd5 {[%emt 0:00:44]} 39. Qc7 {[%emt 0:01:36]} Kf6 {[%emt 0:00:52]} 40. Qc2 {[%emt 0:03:18]} Qf3 {[%emt 0:00:40]} 41. e4 {[%emt 0:35:27]} Kg7 {[%emt 0:03:55]} 42. Qc6 {[%emt 0:00:00]} Qd1+ {[%emt 0:06:56]} 43. Kg2 {[%emt 0:00:00]} Qd4 {[%emt 0:00:09]} 44. Kf3 {[%emt 0:00:00]} Qa1 {[%emt 0:02:27]} 45. Kg2 {[%emt 0:00:00]} Qd4 {[%emt 0:03:02]} 46. Kf3 {[%emt 0:00:00]} Qd2 {[%emt 0:00:14]} 47. Qb5 {[%emt 0:00:00]} Qd6 {[%emt 0:00:33]} 48. Ke2 {[%emt 0:00:00]} Qe6 {[%emt 0:01:13]} 49. Ke3 {[%emt 0:00:00]} Qe7 {[%emt 0:01:52]} 50. Qd5 {[%emt 0:00:00]} Qf6 {[%emt 0:01:38]} 51. Ke2 {[%emt 0:00:00]} Qe7 {[%emt 0:02:55]} 52. Ke3 {[%emt 0:00:00]} f6 {[%emt 0:00:30]} 53. Qa5 {[%emt 0:00:00]} Qd7 {[%emt 0:00:32]} 54. Qc5 {[%emt 0:00:00]} Qf7 {[%emt 0:03:11]} 55. Ke2 {[%emt 0:00:00]} Kh6 {[%emt 0:02:18]} 56. Qd5 {[%emt 0:03:18]} Qg7 {[%emt 0:01:04]} 57. Qd6 {[%emt 0:02:25]} Kh7 {[%emt 0:01:05]} 58. f4 {[%emt 0:01:58]} Qb7 {[%emt 0:02:06]} 59. Qxf6 {[%emt 0:00:43]} Qxe4+ {[%emt 0:00:49]} 60. Kf2 {[%emt 0:00:06]} Qc2+ {[%emt 0:00:54]} 61. Kg1 {[%emt 0:01:23]} Qd1+ {[%emt 0:02:06]} 62. Kh2 {[%emt 0:00:20]} Qc2+ {[%emt 0:00:33]} 63. Kh1 {[%emt 0:01:05]} Qc1+ {[%emt 0:00:42]} 64. Kh2 {[%emt 0:00:08]} Qd2+ {[%emt 0:00:10]} 65. Kg1 {[%emt 0:00:35]} Qd4+ {[%emt 0:00:49]} 66. Kh2 {[%emt 0:00:54]} Qf2+ {[%emt 0:00:20]} 67. Kh3 {[%emt 0:00:05]} Qf1+ {[%emt 0:00:22]} 68. Kh2 {[%emt 0:00:05]} Qe2+ {[%emt 0:00:03]} 69. Kg1 {[%emt 0:00:19]} Qd1+ {[%emt 0:00:12]} 70. Kh2 {[%emt 0:00:12]} Qc2+ {[%emt 0:00:06]} 71. Kh1 {[%emt 0:00:40]} Qb1+ {[%emt 0:00:28]} 72. Kh2 {[%emt 0:00:13]} Qa2+ {[%emt 0:00:16]} 73. Kh3 {[%emt 0:00:16]} exf4 {[%emt 0:00:31]} 74. Qxf4 {[%emt 0:00:05]} Qa7 {[%emt 0:03:31]} 1/2-1/2

[Event "AUT Bundesliga 2024-25"]
[Site "Austria"]
[Date "2025.04.02"]
[Round "6.12"]
[White "Dotzer, Lukas"]
[Black "Steiner, Josef"]
[Result "1-0"]
[Annotator "RC"]
[ECO "B01"]
[WhiteElo "2453"]
[BlackElo "2046"]
[PlyCount "101"]
[EventDate "2024.08.28"]
[EventType "team-tourn"]
[EventCountry "AUT"]
[SourceTitle "playchess.com"]
[Source "ChessBase"]
[SourceQuality "1"]
[TimeControl "40/5400+30:1800+30"]

1. e4 {[%emt 0:00:02]} d5 {[%emt 0:00:10]} 2. exd5 {[%emt 0:00:06]} Qxd5 {[%emt 0:00:05]} 3. Nc3 {[%emt 0:00:09]} Qd6 {[%emt 0:00:53]} 4. d4 {[%emt 0:00:40]} c6 {[%emt 0:00:18]} 5. Nf3 {[%emt 0:04:30]} Nf6 {[%emt 0:00:38]} 6. h3 {[%emt 0:06:08]} Bf5 {[%emt 0:04:06]} 7. Ne5 {[%emt 0:06:15]} h6 {[%emt 0:07:18]} 8. g4 {[%emt 0:08:49]} Bh7 {[%emt 0:01:40]} 9. Bc4 {[%emt 0:04:15]} e6 {[%emt 0:02:13]} 10. Qe2 {[%emt 0:10:54]} Nbd7 {[%emt 0:04:32]} 11. h4 {[%emt 0:09:11]} Nd5 {[%emt 0:03:56]} 12. Nxd5 {[%emt 0:13:58]} exd5 {[%emt 0:02:29]} 13. Ng6+ {[%emt 0:00:16]} Qe6 {[%emt 0:00:48]} 14. Qxe6+ {[%emt 0:01:42]} fxe6 {[%emt 0:00:12]} 15. Nxh8 {[%emt 0:03:30]} dxc4 {[%emt 0:00:12]} 16. c3 {[%emt 0:00:43]} e5 {[%emt 0:06:17]} 17. h5 {[%emt 0:07:13]} c5 {[%emt 0:02:12]} 18. d5 {[%emt 0:02:03]} Nf6 {[%emt 0:11:41]} 19. g5 {[%emt 0:02:24]} hxg5 {[%emt 0:04:55]} 20. Bxg5 {[%emt 0:00:31]} Nxd5 {[%emt 0:00:58]} 21. Ng6 {[%emt 0:00:14]} Bxg6 {[%emt 0:02:13]} 22. hxg6 {[%emt 0:00:06]} Ne7 {[%emt 0:00:09]} 23. Bxe7 {[%emt 0:00:49]} Kxe7 {[%emt 0:00:04]} 24. O-O-O {[%emt 0:03:31]} Kf6 {[%emt 0:01:34]} 25. Rd7 {[%emt 0:02:48]} b5 {[%emt 0:00:59]} 26. Rb7 {[%emt 0:01:27]} b4 {[%emt 0:01:16]} 27. Rd1 {[%emt 0:03:56]} Kxg6 {[%emt 0:00:48]} 28. Rbd7 {[%emt 0:00:53]} Kf5 {[%emt 0:03:42]} 29. Rd8 {[%emt 0:00:37]} Rxd8 {[%emt 0:00:06]} 30. Rxd8 {[%emt 0:00:06]} Be7 {[%emt 0:00:31]} 31. Rd7 {[%emt 0:03:00]} Ke6 {[%emt 0:01:23]} 32. Rxa7 {[%emt 0:00:39]} e4 {[%emt 0:00:11]} 33. a4 {[%emt 0:02:25]} bxa3 {[%emt 0:01:30]} 34. bxa3 {[%emt 0:00:42]} g5 {[%emt 0:00:11]} 35. Kd2 {[%emt 0:01:13]} Bf6 {[%emt 0:01:18]} 36. Ra6+ {[%emt 0:00:28]} Kf5 {[%emt 0:00:08]} 37. Rxf6+ {[%emt 0:00:20]} Kxf6 {[%emt 0:00:04]} 38. Ke3 {[%emt 0:00:17]} Ke5 {[%emt 0:00:06]} 39. a4 {[%emt 0:00:09]} Kd5 {[%emt 0:00:05]} 40. a5 {[%emt 0:00:09]} Kc6 {[%emt 0:00:14]} 41. Kxe4 {[%emt 0:30:08]} Kb5 {[%emt 0:30:05]} 42. Kd5 {[%emt 0:00:39]} Kxa5 {[%emt 0:00:06]} 43. Kxc5 {[%emt 0:00:08]} Ka6 {[%emt 0:00:10]} 44. Kxc4 {[%emt 0:00:08]} Kb6 {[%emt 0:00:07]} 45. Kd5 {[%emt 0:00:08]} Kc7 {[%emt 0:00:06]} 46. Ke5 {[%emt 0:00:15]} Kc6 {[%emt 0:00:04]} 47. Kf5 {[%emt 0:00:08]} Kc5 {[%emt 0:00:03]} 48. Kxg5 {[%emt 0:00:10]} Kc4 {[%emt 0:00:05]} 49. f4 {[%emt 0:00:08]} Kxc3 {[%emt 0:00:04]} 50. f5 {[%emt 0:00:06]} Kd4 {[%emt 0:00:05]} 51. f6 {[%emt 0:00:10]} 1-0

[Event "AUT Bundesliga 2024-25"]
[Site "Austria"]
[Date "2025.04.02"]
[Round "6.13"]
[White "Horvath, Dominik"]
[Black "Dragnev, Valentin"]
[Result "0-1"]
[Annotator "TA"]
[ECO "C10"]
[WhiteElo "2543"]
[BlackElo "2538"]
[PlyCount "52"]
[EventDate "2024.08.28"]
[EventType "team-tourn"]
[EventCountry "AUT"]
[SourceTitle "playchess.com"]
[Source "ChessBase"]
[SourceQuality "1"]
[TimeControl "40/5400+30:1800+30"]

{[%evp 9,52,17,6,-8,-12,-15,-12,-10,-7,-63,-66,-70,-60,-95,-102,-81,-89,-180,-169,-245,-243,-466,-464,-544,-377,-543,-484,-639,-526,-768,-771,-762,-738,-746,-721,-2497,-2376,-5422,-5389,-1606,-764,-748,-744,-29994,-29995]} 1. e4 {[%emt 0:00:05]} e6 {[%emt 0:00:22]} 2. d4 {[%emt 0:01:04]} d5 {[%emt 0:00:06]} 3. exd5 {[%emt 0:04:35]} exd5 {[%emt 0:00:19]} 4. Nf3 {[%emt 0:00:05]} Nc6 {[%emt 0:00:26]} 5. Nc3 {[%emt 0:05:31]} Nf6 {[%emt 0:00:10]} 6. Ne5 {[%emt 0:05:39] C10: French with 3 Nc3: Unusual Black 3rd moves and 3...dxe4.} Bd6 {[%emt 0:01:55]} 7. Nxc6 $146 {[%emt 0:07:44]} (7. Bf4 O-O 8. Be2 Re8 9. Nxc6 bxc6 10. Be3 Rb8 11. Rb1 Bf5 12. O-O Qd7 13. Na4 Ng4 14. Bxg4 Bxg4 {1-0 Gasparyan,D (2189)-Lemos,D (2169) Titled Tuesday intern op 09th Jan Late blitz 2024 (2)}) 7... bxc6 {[%emt 0:00:06]} 8. Bd3 {[%emt 0:00:02] The position is equal.} O-O {[%emt 0:02:12]} 9. Bg5 {[%emt 0:06:29]} ({White should try} 9. O-O $11) 9... Re8+ {[%emt 0:04:12]} 10. Ne2 {[%emt 0:00:05]} Rb8 {[%emt 0:02:25]} 11. Qc1 {[%emt 0:00:41]} h6 {[%emt 0:01:31]} 12. Bh4 {[%emt 0:07:10]} Qe7 {[%emt 0:02:15][%cal Oc8f5] Black has more active pieces.} 13. Kf1 {[%emt 0:33:09]} (13. b3 $17 {was worth a try.}) 13... Bf5 {[%emt 0:08:49] Black has strong rooks and is better} 14. Bxf6 {[%emt 0:08:01]} (14. Ng1 $142 Qe6 15. Bxf6 Qxf6 16. Bxf5 Qxf5 17. Nf3) 14... Qxf6 $19 {[%emt 0:00:15]} 15. h4 $2 {[%emt 0:00:43]} (15. Rb1) 15... Bg4 {[%emt 0:14:44] aiming for ...c5.} 16. c3 {[%emt 0:01:04]} c5 {[%emt 0:00:38]} 17. b3 {[%emt 0:03:03]} (17. dxc5 $142 Bxc5 18. Nd4) 17... cxd4 {[%emt 0:05:38]} 18. cxd4 {[%emt 0:00:35]} c5 {[%emt 0:00:17]} 19. Qd2 {[%emt 0:01:37]} c4 {[%emt 0:10:57]} 20. bxc4 {[%emt 0:00:05]} dxc4 {[%emt 0:00:08]} 21. Bxc4 {[%emt 0:00:03]} Rb4 {[%emt 0:00:22]} 22. Bd3 {[%emt 0:02:00]} Bxe2+ {[%emt 0:00:46]} 23. Bxe2 {[%emt 0:00:03] White is weak on the dark squares} Rxd4 {[%emt 0:00:08]} (23... Qxd4 24. Qxd4 Rxd4 25. Rd1 Rxd1+ 26. Bxd1 $17) 24. Qc1 {[%emt 0:00:58] [#]} Rxe2 {[%emt 0:01:54]} 25. Kxe2 {[%emt 0:00:03]} Re4+ {[%emt 0:00:22]} (25... Rxh4 26. Rxh4 Qxh4 27. Qc8+ Bf8 28. Rc1 $18) 26. Kf1 {[%emt 0:02:26] [#]} Bc5 $1 {[%emt 0:00:53][%mdl 512] White got outplayed after the opening.   Weighted Error Value: White=1.34/Black=0.44  Mistake:       	White=5     	---        Inaccurate:     	White=3     	Black=1      OK:         	White=2     	Black=4      Best:        	White=1     	Black=1} 0-1

[Event "AUT Bundesliga 2024-25"]
[Site "Austria"]
[Date "2025.04.02"]
[Round "6.14"]
[White "Banusz, Tamas"]
[Black "Kozak, Adam"]
[Result "1-0"]
[Annotator "TA"]
[ECO "D05"]
[WhiteElo "2592"]
[BlackElo "2598"]
[PlyCount "79"]
[EventDate "2024.08.28"]
[EventType "team-tourn"]
[EventCountry "AUT"]
[SourceTitle "playchess.com"]
[Source "ChessBase"]
[SourceQuality "1"]
[TimeControl "40/5400+30:1800+30"]

{[%evp 11,79,0,0,5,5,0,2,0,0,0,3,0,17,16,22,3,18,14,11,12,20,13,17,12,23,0,0,0,0,-9,0,0,0,0,0,0,0,0,59,-1,13,0,12,-12,0,0,0,0,0,-2,43,31,52,56,122,48,192,177,171,60,62,51,61,62,65,36,729,711,691,683]} 1. d4 {[%emt 0:00:05]} e6 {[%emt 0:00:07]} 2. Nf3 {[%emt 0:00:24]} c5 {[%emt 0:00:07]} 3. c3 {[%emt 0:03:06]} Nf6 {[%emt 0:03:04]} 4. e3 {[%emt 0:03:41]} b6 {[%emt 0:05:25]} 5. Nbd2 {[%emt 0:05:21]} Bb7 {[%emt 0:02:24]} 6. Bd3 {[%emt 0:00:09]} d5 {[%emt 0:00:13]} 7. Qe2 {[%emt 0:06:44] D05: Colle System with ...e6.} Nc6 {[%emt 0:08:39]} 8. O-O {[%emt 0:05:38]} Be7 {[%emt 0:02:09][%cal Bf8e7,Be7f6,Bf6g7][%mdl 32]} 9. b3 {[%emt 0:02:11] The position is equal.} O-O {[%emt 0:00:22]} 10. Bb2 {[%emt 0:00:06]} a5 {[%emt 0:03:31]} 11. a4 {[%emt 0:03:28]} cxd4 {[%emt 0:06:17]} 12. exd4 {[%emt 0:08:36]} Nd7 $146 {[%emt 0:01:25]} (12... Re8 13. Rfe1 Rc8 14. Rac1 Nd7 15. Ne5 Ncxe5 16. dxe5 Nc5 17. Bb5 Bg5 18. Rcd1 Bxd2 19. Qxd2 Nxb3 {0-1 Coordes,H-Mannheim,M Theme 23545 freechess.de 2022}) 13. Rfe1 {[%emt 0:01:11]} Bf6 {[%emt 0:05:43]} 14. Rad1 {[%emt 0:05:13]} Re8 {[%emt 0:01:09]} 15. Nf1 {[%emt 0:01:11]} g6 {[%emt 0:04:04]} 16. Ne3 {[%emt 0:02:50]} Bg7 {[%emt 0:00:17]} 17. Qd2 {[%emt 0:04:44]} Nf6 {[%emt 0:02:14] Against Ng4} 18. h3 {[%emt 0:01:35]} Ne4 {[%emt 0:16:34]} 19. Qe2 {[%emt 0:01:14]} Rc8 {[%emt 0:02:13]} 20. Ng4 {[%emt 0:04:14]} h5 {[%emt 0:11:48]} 21. Ne3 {[%emt 0:00:55]} Ne7 {[%emt 0:03:08]} 22. Bb5 {[%emt 0:05:15]} Rf8 {[%emt 0:01:58]} 23. c4 {[%emt 0:06:12]} Qd6 {[%emt 0:07:27]} 24. Ne5 {[%emt 0:03:39]} Rc7 {[%emt 0:00:50]} (24... Rfd8 $11) 25. h4 {[%emt 0:09:55]} ({Better is} 25. f3 $14 Ng3 26. Qf2) 25... Rfc8 {[%emt 0:04:34]} 26. f3 {[%emt 0:01:06]} Nf6 {[%emt 0:01:22]} 27. Rc1 {[%emt 0:07:25]} Qd8 {[%emt 0:01:40]} 28. Qf2 {[%emt 0:02:56]} Nc6 {[%emt 0:00:24]} 29. Rcd1 {[%emt 0:00:37]} Na7 {[%emt 0:01:04]} 30. Ba3 {[%emt 0:01:10]} Bf8 {[%emt 0:03:56]} 31. Bxf8 {[%emt 0:00:29]} Qxf8 {[%emt 0:00:02]} 32. Qg3 {[%emt 0:01:19]} Qh6 {[%emt 0:01:39] [#]} (32... Qg7 $14) 33. Kh2 {[%emt 0:02:09]} (33. cxd5 $1 $16 Nxb5 34. dxe6) 33... Nc6 {[%emt 0:00:39] [#]} ({Black should try} 33... Qg7 $14) 34. cxd5 $1 $18 {[%emt 0:00:44]} Nxe5 {[%emt 0:00:05]} 35. dxe5 {[%emt 0:01:21]} ({But not} 35. d6 $6 Nxf3+ 36. gxf3 Rc3 $14) (35. dxe6 $18 Nxf3+ 36. gxf3 fxe6 37. Bc4) 35... Nxd5 $14 {[%emt 0:00:03]} 36. Nc4 {[%emt 0:00:22]} Ba8 {[%emt 0:01:23]} 37. Nd6 {[%emt 0:00:10]} Rf8 {[%emt 0:00:14]} 38. Bc4 {[%emt 0:00:38] White has more active pieces.} Kg7 $2 {[%emt 0:00:45][%mdl 8192]} (38... Qf4 $14) 39. Bxd5 $18 {[%emt 0:00:08]} Bxd5 {[%emt 0:00:05] [#]} 40. Rxd5 $1 {[%emt 0:00:10] Weighted Error Value: White=0.11 (very precise) /Black=0.35  Loses game:     	---       	Black=1      Mistake:       	White=3     	Black=3      Inaccurate:     	---       	Black=1      OK:         	White=18    	Black=14     Best:        	White=2     	Black=2      Strong:       	White=1     	---} 1-0